bitfinex-derivatives/quotes_ETHF0:USTF0_20260104
["timestamp","ask_amount","ask_price","bid_price","bid_amount"]
[1767484800323,0.13420671,3128.2,3126.7,0.14525568]
[1767484801022,0.13420671,3128.2,3126.7,0.00179916]
[1767484802023,1.18481593,3128.1,3126.7,0.00179916]
[1767484802220,0.14048231,3128.1,3126.7,0.00179916]
[1767484803722,1.04371286,3128.0,3126.7,0.00179916]
[1767484803922,1.18419517,3127.9,3126.7,0.00179916]
[1767484804220,0.14048231,3127.9,3126.7,0.00179916]
[1767484805223,7.68848231,3127.8,3126.7,0.00179916]
[1767484806022,0.14048231,3127.8,3126.7,0.00179916]
[1767484806223,4.351,3127.7,3126.7,0.00179916]
[1767484807614,3.33848231,3127.8,3126.7,0.00179916]
[1767484807615,0.14048231,3127.8,3126.7,0.00179916]
[1767484807814,4.354,3127.7,3126.7,0.00179916]
[1767484808018,0.15992,3128.0,3126.7,0.00179916]
[1767484808214,0.14048231,3127.7,3126.1,0.13375689]
[1767484808415,0.14048231,3127.6,3125.4,0.13375689]
[1767484808814,0.14048231,3127.6,3125.6,0.13375689]
[1767484809214,4.355,3127.5,3125.7,0.13375689]
[1767484810524,4.355,3127.5,3125.8,0.13375689]
[1767484811819,0.15993,3127.7,3125.8,0.13375689]
[1767484812029,2.739,3127.6,3125.8,0.13375689]
[1767484812331,4.355,3127.8,3126.0,0.13375689]
[1767484813321,4.355,3127.8,3126.1,0.13375689]
[1767484814627,0.14048231,3128.0,3126.2,0.13375689]
[1767484814826,4.355,3127.8,3126.2,0.13375689]
[1767484816629,4.355,3127.9,3126.3,0.13375689]
[1767484817625,0.30038231,3128.3,3126.3,0.29375689]
[1767484817831,3.52,3128.2,3126.4,0.13375689]
[1767484819133,3.66048231,3128.2,3126.4,0.13375689]
[1767484821427,0.14048231,3128.1,3126.4,0.13375689]
[1767484823124,0.14048231,3128.1,3126.4,0.29374689]
[1767484823319,3.843,3128.1,3126.5,0.13375689]
[1767484824216,0.1599,3128.3,3126.5,0.13375689]
[1767484824426,4.354,3128.2,3126.5,0.13375689]
[1767484830933,0.14048231,3128.5,3126.6,0.13767618]
[1767484831237,4.355,3128.4,3126.7,0.13767618]
[1767484832439,0.49319324,3128.6,3126.9,0.13626256]
[1767484832637,4.356,3128.4,3126.9,0.29623256]
[1767484832831,0.49319324,3128.6,3127.1,0.13626256]
[1767484833027,4.356,3128.4,3127.1,0.13626256]
[1767484833441,0.49319324,3128.6,3127.2,0.13626256]
[1767484833627,4.84919324,3128.6,3127.2,0.13626256]
[1767484834140,0.49319324,3128.6,3127.3,0.13626256]
[1767484839338,0.00479916,3128.3,3127.6,0.00479916]
[1767484845240,0.00479916,3128.3,3127.6,0.14106172]
[1767484849647,0.00479916,3128.3,3127.6,0.39737879]
[1767484850144,0.00479916,3128.3,3127.6,0.14106172]
[1767484850538,0.00479916,3128.3,3127.6,6.14106172]
[1767484851343,0.00479916,3128.3,3127.7,0.13626256]
[1767484851845,0.00336256,3128.7,3127.7,0.13626256]
[1767484852245,0.00336256,3128.7,3127.7,6.29619256]
[1767484852438,0.00336256,3128.7,3127.8,0.13626256]
[1767484852636,0.00336256,3128.7,3127.8,0.13958095]
[1767484852837,3.198,3129.8,3128.0,0.13626256]
[1767484853036,1.554,3129.7,3128.0,0.13626256]
[1767484853550,1.68806529,3129.7,3128.0,0.13626256]
[1767484853942,4.4902048,3129.7,3128.0,0.13626256]
[1767484855252,0.00479916,3129.2,3128.0,0.13626256]
[1767484858146,0.00413951,3129.7,3128.2,0.13626256]
[1767484858547,0.1382048,3129.7,3127.8,0.13958095]
[1767484859254,0.00479916,3129.1,3127.8,0.13958095]
[1767484860951,6.00479916,3129.1,3127.8,0.13958095]
[1767484862454,0.13490404,3129.0,3127.8,0.00331839]
[1767484862653,0.13490404,3128.9,3127.8,0.00331839]
[1767484866260,6.0,3129.0,3127.8,0.00331839]
[1767484866454,4.353,3128.9,3127.8,0.00331839]
[1767484874071,4.48790404,3128.9,3127.8,0.00331839]
[1767484878571,4.367,3128.8,3127.8,0.00331839]
[1767484886675,0.1397032,3129.1,3127.8,0.00331839]
[1767484886877,4.374,3128.7,3127.8,0.00331839]
[1767484888576,0.13490404,3128.6,3127.6,0.00479916]
[1767484888777,6.13490404,3128.6,3127.6,0.00479916]
[1767484889168,0.13490404,3128.5,3127.6,0.00479916]
[1767484889777,0.13490404,3128.5,3127.6,0.00810208]
[1767484892884,0.13717501,3128.4,3127.0,0.14332825]
[1767484893379,0.13717501,3128.4,3126.6,0.13068428]
[1767484893885,0.13717501,3128.4,3127.2,0.00479916]
[1767484908797,4.385,3128.3,3127.2,0.00479916]
[1767484909296,4.52217501,3128.3,3127.2,0.00479916]
[1767484913797,0.13717501,3128.3,3127.2,0.00479916]
[1767484914101,4.39,3128.2,3127.2,0.00479916]
[1767484914803,0.13717501,3128.3,3127.2,0.00479916]
[1767484914993,4.391,3128.1,3127.2,0.00479916]
[1767484920703,0.13717501,3128.3,3127.2,0.00479916]
[1767484921012,4.394,3128.2,3127.2,0.00479916]
[1767484921506,4.395,3128.1,3127.2,0.00479916]
[1767484927612,4.398,3128.0,3127.2,0.00479916]
[1767484928517,0.15989,3128.5,3127.2,0.00479916]
[1767484928813,8.65252868,3128.4,3127.2,0.00479916]
[1767484929018,1.05552868,3128.3,3127.2,0.00479916]
[1767484930112,0.1375728,3128.2,3126.6,0.00395683]
[1767484930316,0.1375728,3128.0,3126.6,0.00395683]
[1767484930502,0.1599,3128.3,3126.6,0.14361334]
[1767484930703,8.25538826,3128.2,3126.6,0.14361334]
[1767484931010,1.05538826,3128.1,3126.6,0.14361334]
[1767484931211,7.2,3128.2,3127.0,0.00479916]
[1767484931410,1.05531005,3128.1,3127.0,0.00479916]
[1767484931612,0.1375728,3128.4,3127.0,0.00479916]
[1767484931809,1.05528011,3128.3,3127.0,0.14445567]
[1767484932009,4.402,3128.2,3127.0,0.14445567]
[1767484934707,3.198,3128.7,3127.0,0.14445567]
[1767484934913,5.457233,3128.6,3127.0,0.14445567]
[1767484935206,1.055233,3128.5,3127.0,0.14445567]
[1767484935415,4.402,3128.6,3127.0,0.14445567]
[1767484935614,0.1375728,3128.8,3127.1,0.13965651]
[1767484935837,4.402,3128.7,3127.1,0.13965651]
[1767484936317,4.402,3128.6,3127.1,0.13965651]
[1767484938022,4.402,3128.6,3127.2,0.13965651]
[1767484939816,0.15987,3128.9,3127.2,0.13965651]
[1767484940120,4.402,3128.8,3127.4,0.13965651]
[1767484941221,4.402,3128.8,3127.5,0.13965651]
[1767484942119,0.00479916,3129.1,3127.5,6.13965651]
[1767484942316,4.402,3129.0,3127.6,0.13965651]
[1767484944215,0.00479916,3129.1,3127.6,0.13965651]
[1767484944415,0.00479916,3129.1,3127.8,0.13965651]
[1767484948522,0.00479916,3129.1,3128.0,0.13965651]
[1767484949315,0.00479916,3129.1,3128.2,0.13965651]
[1767484949518,0.1375728,3130.6,3128.9,0.13965651]
[1767484950216,4.4,3130.8,3128.9,0.13965651]
[1767484950423,4.4,3130.8,3129.0,0.14157756]
[1767484950614,0.00479916,3130.2,3129.5,0.00479916]
[1767484951523,0.00225166,3130.8,3129.5,6.14726872]
[1767484951818,0.00225166,3130.8,3129.6,0.14246956]
[1767484952728,0.00225166,3130.8,3129.5,0.00479916]
[1767484953024,0.00479916,3130.5,3129.5,0.00479916]
[1767484953226,0.00225166,3130.8,3129.5,0.00479916]
[1767484953227,0.00225166,3130.8,3129.6,0.14246956]
[1767484953430,0.00225166,3130.8,3129.6,6.14246956]
[1767484953821,0.00225166,3130.8,3129.7,0.14246956]
[1767484954930,0.00318135,3130.6,3129.7,0.14246956]
[1767484956533,0.00318135,3130.6,3129.8,6.14246956]
[1767484956734,0.00318135,3130.6,3129.8,0.14246956]
[1767484959736,0.00225166,3130.8,3130.0,0.14246956]
[1767484965940,0.00225166,3130.8,3129.6,4.14147534]
[1767484966143,0.00225166,3130.8,3129.6,0.14246956]
[1767484967242,0.00225166,3130.8,3129.5,0.00479916]
[1767484968844,6.00225166,3130.8,3129.5,0.00479916]
[1767484969044,6.14208619,3130.8,3129.5,0.00479916]
[1767484971237,0.13983453,3130.7,3129.5,0.00479916]
[1767484971440,4.394,3130.6,3129.5,0.00479916]
[1767484974234,10.394,3130.6,3129.5,0.00479916]
[1767484975547,4.53166076,3130.6,3129.5,0.00479916]
[1767484975734,7.03443562,3130.5,3129.5,0.00479916]
[1767484975943,1.03443562,3130.4,3129.5,0.00479916]
[1767484976349,6.0,3130.5,3129.5,0.00479916]
[1767484976534,4.53166076,3130.6,3129.5,0.00479916]
[1767484976535,1.03499471,3130.4,3129.5,0.00479916]
[1767484976736,0.13766076,3130.4,3128.8,0.13589341]
[1767484977038,0.13766076,3130.2,3129.0,0.00321252]
[1767484977235,1.03502288,3130.1,3129.0,0.00321252]
[1767484977631,0.00479916,3129.9,3129.2,0.00479916]
[1767484977835,4.401,3129.8,3129.2,0.00479916]
[1767484978845,0.00479916,3129.9,3129.2,0.00479916]
[1767484979137,4.402,3129.8,3129.2,0.00479916]
[1767484980634,0.00479916,3129.9,3129.3,0.00321252]
[1767484980832,4.40779916,3129.9,3129.3,0.00321252]
[1767484981352,0.00479916,3129.9,3129.3,0.00321252]
[1767484982045,0.00479916,3129.9,3129.3,0.14495356]
[1767484982442,0.00479916,3129.9,3129.3,0.14174104]
[1767484982638,4.404,3130.3,3129.8,0.00321252]
[1767484983442,0.00225166,3130.8,3129.8,0.00321252]
[1767484983643,6.00225166,3130.8,3129.3,0.14174104]
[1767484983849,4.404,3130.7,3129.5,0.14174104]
[1767484984141,0.00225166,3130.8,3129.5,0.14495356]
[1767484984337,4.03042377,3132.2,3129.2,0.00479916]
[1767484984338,1.71754264,3132.2,3130.0,0.14174104]
[1767484984539,4.405,3131.8,3130.0,0.14174104]
[1767484984739,4.405,3131.8,3130.8,0.00479126]
[1767484985345,10.405,3131.8,3130.8,0.00479126]
[1767484985546,10.40863947,3131.8,3130.8,0.00479126]
[1767484985746,4.40863947,3131.8,3130.8,0.00479126]
[1767484986147,6.0,3131.7,3130.8,0.00479126]
[1767484986348,0.00363947,3131.8,3131.0,0.14174104]
[1767484986550,0.00363947,3131.8,3131.2,0.00321252]
[1767484986757,0.00363947,3131.8,3131.2,0.00712559]
[1767484987655,6.00363947,3131.8,3130.8,0.00479126]
[1767484987853,0.00363947,3131.8,3130.8,0.00479126]
[1767484988653,0.00363947,3131.8,3130.8,0.00863415]
[1767484988859,0.14088826,3132.7,3130.9,0.14174104]
[1767484989046,1.02667263,3132.6,3130.9,0.14174104]
[1767484989254,4.54688826,3132.7,3130.9,0.14174104]
[1767484989448,1.0261575,3132.6,3130.9,0.14174104]
[1767484989646,4.54688826,3132.7,3130.9,0.14174104]
[1767484989849,1.02615334,3132.6,3130.9,0.14174104]
[1767484990146,0.00237669,3132.6,3130.9,0.14174104]
[1767484990356,0.14326495,3132.6,3130.9,0.14174104]
[1767484991050,0.14326495,3132.6,3130.8,0.00863415]
[1767484991246,0.14088826,3132.4,3130.8,0.00863415]
[1767484993563,0.14088826,3132.3,3130.8,0.00863415]
[1767484993862,0.14088826,3132.1,3130.8,0.00863415]
[1767484994261,0.14088826,3131.9,3130.1,0.14174104]
[1767484994562,0.14088826,3131.7,3130.1,0.14174104]
[1767484995356,0.00476494,3131.2,3130.6,0.00479126]
[1767485000667,6.00476494,3131.2,3130.1,0.00413135]
[1767485000866,0.00476494,3131.2,3130.1,0.00413135]
[1767485001665,0.00476494,3131.2,3130.3,0.00479126]
[1767485002370,4.404,3131.1,3130.3,0.00479126]
[1767485002570,3.568,3131.0,3130.3,0.00479126]
[1767485003068,4.404,3131.0,3130.3,0.00479126]
[1767485004268,0.00476494,3131.2,3130.3,0.00479126]
[1767485004466,3.56876494,3131.2,3130.3,0.1465323]
[1767485006369,0.00476494,3131.2,3130.3,0.1465323]
[1767485006569,3.97576494,3131.2,3130.3,0.1465323]
[1767485007764,0.00476494,3131.2,3130.3,0.1465323]
[1767485008073,3.195,3132.1,3130.5,0.14174104]
[1767485008275,4.405,3132.0,3130.5,0.14174104]
[1767485009375,0.00479126,3131.6,3130.5,0.14174104]
[1767485012476,0.00479126,3131.6,3130.3,0.00479126]
[1767485014577,0.00479126,3131.6,3130.3,0.14685926]
[1767485014876,0.00479126,3131.6,3130.4,0.142068]
[1767485015266,0.00479126,3131.6,3130.4,6.142068]
[1767485015580,0.00479126,3131.6,3130.5,0.142068]
[1767485016183,0.00479126,3131.6,3130.5,6.142068]
[1767485016380,0.00479126,3131.6,3130.6,0.142068]
[1767485017285,1.922,3132.3,3130.7,0.142068]
[1767485018490,0.16205669,3132.6,3130.7,0.142068]
[1767485018689,4.403,3132.5,3130.7,0.142068]
[1767485019785,4.403,3132.4,3130.7,0.142068]
[1767485020092,4.403,3132.3,3130.7,0.142068]
[1767485020790,4.403,3132.3,3130.8,0.142068]
[1767485021286,0.00237669,3132.6,3130.8,6.142068]
[1767485021477,0.00237669,3132.6,3130.9,4.267047]
[1767485021682,0.00237669,3132.6,3131.0,0.142068]
[1767485022184,0.00237669,3132.6,3131.2,0.142068]
[1767485022583,0.00237669,3132.6,3131.3,0.142068]
[1767485023288,2.143,3132.9,3130.4,6.274]
[1767485023289,1.71576635,3135.2,3131.5,0.142068]
[1767485023482,4.402,3135.0,3132.5,0.142068]
[1767485023683,0.34539851,3134.4,3133.0,0.142068]
[1767485023883,0.14325364,3135.7,3133.3,0.142068]
[1767485024089,0.14325364,3135.7,3133.7,0.142068]
[1767485024291,0.14551346,3135.7,3134.2,0.00479126]
[1767485024793,0.1480449,3135.3,3133.7,0.00363292]
[1767485025087,0.14325364,3135.0,3132.7,0.142068]
[1767485025294,0.14325364,3135.0,3132.1,0.1597]
[1767485025295,0.14325364,3134.8,3132.5,0.88497495]
[1767485025490,0.14325364,3134.8,3132.9,0.142068]
[1767485025690,0.14325364,3134.8,3133.5,0.00479126]
[1767485025881,0.14325364,3134.8,3133.5,0.00725974]
[1767485026686,0.14325364,3134.7,3133.5,0.00725974]
[1767485026988,0.14325364,3134.7,3132.5,0.74290695]
[1767485026989,0.14325364,3134.5,3132.5,0.74290695]
[1767485027790,0.14325364,3134.5,3133.2,0.00479126]
[1767485028797,2.485,3134.8,3133.2,0.00479126]
[1767485030097,0.14325364,3134.5,3133.2,0.00479126]
[1767485030298,0.14325364,3134.4,3132.5,0.74545444]
[1767485030796,0.14325364,3134.2,3132.5,0.74545444]
[1767485031192,0.14325364,3134.2,3132.5,0.00254749]
[1767485031396,0.00479126,3133.7,3133.0,0.00479126]
[1767485033095,4.54325364,3134.7,3133.0,0.00479126]
[1767485034105,0.00479126,3134.2,3133.0,0.00479126]
[1767485034308,0.14325364,3135.6,3133.2,0.142068]
[1767485034695,0.14325364,3135.6,3133.4,0.142068]
[1767485035705,0.00479126,3134.8,3133.6,0.142068]
[1767485036101,4.40125982,3135.7,3133.8,0.142068]
[1767485036491,4.40125982,3135.7,3134.0,0.142068]
[1767485036905,4.40125982,3135.7,3134.1,4.11927192]
[1767485037102,4.40125982,3135.7,3134.6,0.00479126]
[1767485037702,4.54451346,3135.7,3134.6,0.00479126]
[1767485037901,0.14325364,3135.6,3134.6,0.00479126]
[1767485038304,0.00225982,3135.7,3134.6,0.00479126]
[1767485040601,6.13515265,3135.7,3134.6,0.00479126]
[1767485040806,0.13289283,3135.6,3134.6,0.00479126]
[1767485041310,0.00225982,3135.7,3134.6,0.00479126]
[1767485042206,0.13515265,3135.7,3134.6,0.00479126]
[1767485042407,0.13289283,3135.5,3133.4,0.14468491]
[1767485042604,0.13289283,3135.4,3133.4,0.14468491]
[1767485042809,0.13289283,3135.4,3133.6,4.17147734]
[1767485043009,0.13289283,3135.4,3133.5,4.17147734]
[1767485043212,0.13289283,3135.4,3133.4,0.14468491]
[1767485043413,0.13289283,3135.4,3133.6,4.17147734]
[1767485043614,0.13289283,3135.4,3134.1,0.00479126]
[1767485044418,0.13289283,3135.3,3134.1,0.00479126]
[1767485045318,0.29243283,3135.3,3134.1,0.00479126]
[1767485045513,4.40279126,3135.5,3134.1,0.00479126]
[1767485045708,0.00479126,3135.5,3134.1,0.00479126]
[1767485046211,0.00479126,3135.5,3134.2,10.36227646]
[1767485049616,0.00479126,3135.5,3134.1,0.00479126]
[1767485050417,1.01456021,3135.4,3134.1,0.00479126]
[1767485050622,1.14745304,3135.3,3134.1,0.00479126]
[1767485050922,0.13289283,3135.1,3134.1,0.00479126]
[1767485051118,1.01456021,3135.0,3134.1,0.00479126]
[1767485051320,11.41156021,3135.0,3133.2,0.14468491]
[1767485051520,0.13289283,3134.8,3133.1,0.15965]
[1767485051719,1.01456021,3134.7,3133.3,4.15780293]
[1767485052025,1.01456021,3134.6,3133.2,4.30248784]
[1767485052324,1.01760061,3134.5,3133.6,0.00479126]
[1767485052528,4.52989283,3135.2,3133.6,0.00479126]
[1767485052723,1.01759023,3135.1,3133.6,0.00479126]
[1767485052924,1.01759023,3135.0,3133.6,0.00479126]
[1767485053222,1.01759023,3134.9,3133.6,0.00479126]
[1767485053417,1.01759023,3134.8,3133.6,0.00479126]
[1767485053624,1.01759023,3134.7,3133.6,0.00479126]
[1767485053823,1.01759023,3134.6,3133.6,0.00479126]
[1767485054019,1.83711582,3135.2,3133.6,0.00479126]
[1767485054222,1.01815189,3135.1,3133.6,0.00479126]
[1767485054524,1.01815189,3135.0,3133.6,0.00479126]
[1767485054713,1.01815189,3134.9,3133.6,0.00479126]
[1767485054914,1.01815189,3134.8,3133.6,0.00479126]
[1767485055109,1.01815189,3134.7,3133.6,0.00479126]
[1767485055324,1.01815189,3134.6,3133.6,0.00479126]
[1767485055513,0.13289283,3135.2,3133.6,0.00479126]
[1767485055713,1.01836682,3135.1,3133.6,0.00479126]
[1767485055912,1.01836682,3135.0,3133.6,0.00479126]
[1767485056116,1.01836682,3134.9,3133.6,0.00479126]
[1767485056328,1.01836682,3134.8,3133.6,0.00479126]
[1767485056525,1.01836682,3134.7,3133.6,0.00479126]
[1767485056717,1.01836682,3134.6,3133.6,0.00479126]
[1767485056921,0.13289283,3135.2,3133.6,0.00479126]
[1767485057228,1.01844507,3135.1,3133.6,0.00479126]
[1767485057433,1.01844507,3135.0,3133.6,0.00479126]
[1767485059818,1.01844507,3134.9,3133.6,0.00479126]
[1767485060024,0.53980826,3137.1,3133.6,0.00479126]
[1767485060025,1.01844507,3134.8,3133.8,0.14468491]
[1767485060234,0.00479126,3135.5,3133.8,0.14468491]
[1767485060526,1.01941666,3135.4,3133.9,4.23166055]
[1767485060823,1.01941666,3135.3,3134.0,0.14468491]
[1767485061028,0.00479126,3135.5,3134.0,0.14468491]
[1767485061222,1.01936822,3135.4,3134.0,4.27535806]
[1767485061427,1.01936822,3135.3,3134.0,0.14468491]
[1767485061726,0.00479126,3135.5,3134.1,4.21961797]
[1767485061929,1.02000864,3135.4,3134.2,0.14468491]
[1767485062228,0.00479126,3135.5,3134.2,0.14468491]
[1767485062420,1.02071695,3135.4,3134.2,6.14468491]
[1767485062619,0.00479126,3135.5,3134.2,6.14468491]
[1767485062829,1.02071659,3135.4,3134.2,6.14468491]
[1767485063030,0.00479126,3135.5,3134.2,6.14468491]
[1767485063325,1.02071658,3135.4,3134.2,6.14468491]
[1767485063524,0.00479126,3135.5,3134.2,6.14468491]
[1767485063727,1.02104332,3135.4,3134.2,6.14468491]
[1767485064029,0.00479126,3135.5,3134.3,4.09623637]
[1767485064323,1.02098657,3135.4,3134.3,4.09623637]
[1767485064529,0.00479126,3135.5,3134.3,4.09623637]
[1767485064720,1.02130399,3135.4,3134.3,4.09623637]
[1767485064915,0.00479126,3135.5,3134.3,4.09623637]
[1767485065125,1.02130397,3135.4,3134.4,0.14468491]
[1767485065325,0.00479126,3135.5,3134.4,0.14468491]
[1767485065527,0.00479126,3135.5,3134.5,4.11197892]
[1767485066828,0.00479126,3135.5,3134.5,4.25666383]
[1767485067230,0.00479126,3135.5,3134.5,0.14468491]
[1767485067431,0.00479126,3135.5,3134.6,4.1031747]
[1767485069527,0.13768409,3135.5,3133.7,0.14468491]
[1767485069931,0.13768409,3135.5,3134.0,4.23969405]
[1767485070331,0.13768409,3135.5,3133.7,4.38437896]
[1767485070332,0.13768409,3135.5,3133.8,4.23969405]
[1767485070629,1.02065089,3135.4,3134.1,4.06236211]
[1767485070829,1.16527227,3135.3,3134.0,4.06236211]
[1767485071021,1.02065089,3135.2,3133.8,4.06236211]
[1767485071221,1.02065089,3135.2,3133.7,0.14468491]
[1767485071425,0.14462138,3135.3,3133.7,0.14468491]
[1767485071619,0.13140751,3135.1,3133.8,4.06236211]
[1767485071832,1.02067716,3135.0,3133.6,0.00479126]
[1767485072023,0.13140751,3135.1,3133.6,0.00479126]
[1767485072830,0.00479126,3135.5,3133.8,0.13676242]
[1767485073130,0.00479126,3135.5,3134.0,0.13676242]
[1767485074236,0.00479126,3135.5,3134.1,4.34206992]
[1767485074437,0.00479126,3135.5,3134.2,0.13676242]
[1767485074844,0.00479126,3135.5,3134.4,0.13676242]
[1767485075834,0.00479126,3135.5,3134.5,4.1366784]
[1767485076236,0.00225982,3135.7,3134.6,6.13676242]
[1767485076434,0.00225982,3135.7,3134.7,0.13676242]
[1767485076634,0.00225982,3135.7,3134.7,4.27580374]
[1767485077044,0.13140751,3136.6,3134.8,0.13676242]
[1767485077437,0.00479126,3136.0,3135.4,0.00479126]
[1767485078139,0.00763334,3136.0,3135.4,0.00479126]
[1767485080740,0.13140751,3137.0,3135.5,6.0]
[1767485080935,0.13140751,3137.0,3135.4,0.00479126]
[1767485081445,0.13140751,3137.0,3135.5,4.23644174]
[1767485081640,0.13475102,3137.0,3135.5,4.23644174]
[1767485082243,0.13475102,3137.0,3135.5,4.37320416]
[1767485082445,0.00334351,3137.0,3135.5,4.37320416]
[1767485082646,0.00334351,3137.0,3135.6,0.13676242]
[1767485083049,0.00334351,3137.0,3135.7,4.1695959]
[1767485083445,0.00334351,3137.0,3135.6,4.1695959]
[1767485083645,0.13475102,3137.0,3135.4,0.00479126]
[1767485083852,0.13140751,3136.9,3135.4,0.00479126]
[1767485084648,0.13140751,3136.7,3135.4,0.00479126]
[1767485086454,0.00334351,3137.0,3135.4,0.00479126]
[1767485086855,0.13475102,3137.0,3135.4,0.00479126]
[1767485091257,0.13140751,3136.9,3135.4,0.00479126]
[1767485092662,0.29086751,3136.9,3135.4,0.00479126]
[1767485092963,0.13140751,3136.8,3135.4,0.00479126]
[1767485093168,0.15947,3136.6,3135.4,0.00479126]
[1767485093463,0.13140751,3136.3,3134.5,0.13676242]
[1767485093666,0.13140751,3136.2,3134.5,0.13676242]
[1767485094067,0.13140751,3136.2,3134.2,0.1596]
[1767485094264,0.00476428,3135.8,3134.2,0.1596]
[1767485095472,0.13140751,3135.7,3134.0,0.13676242]
[1767485095864,0.13140751,3135.7,3134.1,0.00236292]
[1767485096577,0.13140751,3135.7,3134.6,0.00478316]
[1767485097071,6.13140751,3135.7,3134.6,0.00478316]
[1767485097268,0.13140751,3135.6,3134.6,0.00478316]
[1767485098674,0.13140751,3135.6,3134.1,0.0038379]
[1767485098870,0.13140751,3135.5,3134.2,0.00714608]
[1767485099066,0.13140751,3135.5,3134.1,0.0038379]
[1767485099573,0.13140751,3135.5,3132.9,3.19]
[1767485099574,0.13140751,3135.3,3133.1,0.13676242]
[1767485099780,0.13140751,3135.1,3133.9,0.00478316]
[1767485100177,0.13612343,3135.0,3133.1,0.13676242]
[1767485100481,0.13612343,3134.7,3132.6,0.12067241]
[1767485100777,0.13908897,3134.7,3132.8,0.00714608]
[1767485100973,0.13908897,3134.7,3132.6,4.09182196]
[1767485100974,0.13908897,3134.7,3133.0,0.00714608]
[1767485101173,2.932,3134.6,3133.0,0.00714608]
[1767485101370,0.00478316,3134.2,3133.5,0.00478316]
[1767485101570,0.00296554,3134.7,3133.5,0.00478316]
[1767485101771,0.00296554,3134.7,3133.5,6.00478316]
[1767485102574,0.00478316,3134.4,3133.5,6.13845557]
[1767485102767,0.00296554,3134.7,3133.6,4.33571629]
[1767485102974,0.00296554,3134.7,3133.6,10.33571629]
[1767485103879,0.00478316,3134.5,3133.7,0.13367241]
[1767485104082,4.395,3135.5,3133.7,0.13367241]
[1767485104283,4.395,3135.5,3133.9,0.13367241]
[1767485104780,4.53407961,3135.5,3133.9,0.13367241]
[1767485104981,0.00478316,3135.0,3133.5,0.29808557]
[1767485105377,0.00478316,3135.0,3133.8,4.08930224]
[1767485105680,0.00478316,3135.0,3133.5,0.29808557]
[1767485106079,0.00478316,3135.0,3133.8,4.10605247]
[1767485106276,0.00478316,3135.0,3133.6,4.10605247]
[1767485106479,0.00478316,3135.0,3133.7,6.0]
[1767485106674,0.00478316,3135.0,3133.8,4.10605247]
[1767485106875,0.00478316,3135.0,3133.7,0.13367241]
[1767485107276,0.00478316,3135.0,3133.7,4.21091517]
[1767485108578,0.00478316,3135.0,3133.8,0.13367241]
[1767485110786,0.00478316,3135.0,3134.2,0.00714608]
[1767485117885,0.00478316,3135.0,3134.2,0.14081849]
[1767485118084,0.00295618,3135.5,3134.4,0.13367241]
[1767485119086,0.00295618,3135.5,3134.5,4.15209527]
[1767485119298,0.00295618,3135.5,3134.5,4.28576768]
[1767485120695,0.13612343,3136.3,3134.6,0.13367241]
[1767485120905,0.13612343,3136.3,3135.1,0.00478316]
[1767485122002,0.14001896,3136.3,3135.1,0.00766724]
[1767485122910,3.191,3137.9,3135.8,0.15951]
[1767485123207,0.75046823,3139.2,3135.9,3.256]
[1767485123420,0.47239929,3139.2,3135.9,7.42592586]
[1767485123611,4.03042377,3141.6,3137.2,0.00478316]
[1767485123802,1.01997904,3141.5,3137.2,0.00478316]
[1767485124112,0.15916,3142.8,3137.6,0.15942]
[1767485124409,0.13612343,3142.3,3138.2,5.90406211]
[1767485124596,0.13612343,3142.3,3139.9,0.00478316]
[1767485124799,0.134,3143.1,3140.0,0.49768077]
[1767485125104,0.5,3141.6,3140.1,0.54068077]
[1767485125305,0.5394623,3140.9,3140.0,4.15068743]
[1767485125509,0.134,3143.1,3140.5,0.0047754]
[1767485125699,0.89730051,3144.0,3140.6,0.60697673]
[1767485125906,1.86530051,3144.0,3140.8,0.10934145]
[1767485126207,0.74185626,3144.0,3140.9,14.26725952]
[1767485126406,0.74185626,3144.0,3141.1,0.10934145]
[1767485126609,0.74185626,3144.0,3142.1,0.0047754]
[1767485126799,0.74185626,3144.0,3142.3,0.10934145]
[1767485126998,0.74185626,3144.0,3142.4,9.97397673]
[1767485127199,0.6480026,3144.0,3142.6,0.10934145]
[1767485127404,0.13612343,3144.7,3142.7,0.49763528]
[1767485127606,0.25017369,3146.7,3142.7,0.49763528]
[1767485127607,0.13612343,3144.5,3142.8,0.25139185]
[1767485127802,0.13612343,3144.5,3143.3,0.0047754]
[1767485128005,0.13612343,3144.3,3143.3,0.0047754]
[1767485128306,0.00339604,3144.3,3143.3,0.00749196]
[1767485128504,0.00339604,3144.3,3141.9,1.35975742]
[1767485128505,0.13612343,3144.1,3141.9,1.35975742]
[1767485128808,0.13612343,3144.1,3140.7,1.36006428]
[1767485129116,0.13612343,3144.0,3141.0,4.10721089]
[1767485129301,0.13612343,3143.8,3140.8,5.17221089]
[1767485129507,0.13612343,3143.8,3140.9,4.10721089]
[1767485129713,0.00474951,3142.6,3142.0,0.0047754]
[1767485130106,0.13472324,3143.4,3142.1,10.08192581]
[1767485130308,0.13472324,3144.2,3142.1,19.44092581]
[1767485130803,3.187,3145.3,3142.3,0.13555422]
[1767485131114,2.24395841,3147.4,3142.4,4.17181912]
[1767485131322,3.187,3146.5,3142.5,0.13555422]
[1767485131815,3.1907982,3146.5,3144.5,0.0047754]
[1767485132003,3.1907982,3146.5,3144.5,0.00790282]
[1767485132209,3.1907982,3146.5,3144.6,3.4600155]
[1767485132408,6.97334452,3146.4,3142.6,0.14298914]
[1767485132606,6.97334452,3146.3,3142.6,0.14298914]
[1767485132824,0.97334452,3146.2,3142.6,0.14298914]
[1767485133013,4.076,3146.1,3142.6,0.14298914]
[1767485133212,4.076,3146.1,3142.7,0.14298914]
[1767485133512,0.0037982,3146.5,3144.1,0.14776454]
[1767485133817,0.0037982,3146.5,3144.1,0.0047754]
[1767485134209,0.0047754,3145.6,3144.1,0.14776454]
[1767485134516,0.0037982,3146.5,3144.3,0.14298914]
[1767485135015,6.0,3146.4,3144.4,4.06273971]
[1767485135220,6.569,3147.2,3144.1,0.0047754]
[1767485135521,8.53708892,3147.1,3144.1,0.14776454]
[1767485135720,7.568,3147.1,3144.1,0.14776454]
[1767485135908,7.5708474,3147.1,3145.3,0.0047754]
[1767485136111,3.1878474,3147.1,3145.3,0.14776454]
[1767485136310,3.1878474,3147.1,3145.5,0.14298914]
[1767485136615,3.1878474,3147.1,3145.3,0.00749195]
[1767485136616,6.0,3147.0,3145.3,0.00749195]
[1767485136813,0.0028474,3147.1,3145.3,0.15048109]
[1767485137117,3.184,3147.6,3145.5,0.14298914]
[1767485137320,7.569,3148.1,3145.5,0.14298914]
[1767485137617,0.7259328,3148.9,3146.6,0.14298914]
[1767485137822,0.7259328,3148.9,3146.8,0.14298914]
[1767485138009,3.902,3151.0,3146.8,0.14298914]
[1767485138211,0.14088422,3150.9,3148.6,0.00476766]
[1767485138625,3.184,3151.8,3148.6,0.00476766]
[1767485138626,0.25940114,3152.3,3148.8,0.11816914]